bitfinex/quotes_ETHUSD_20250329
["timestamp","ask_amount","ask_price","bid_price","bid_amount"]
[1743265645503,3.4907,1841.8,1841.6,5.42999]
[1743265645704,3.0633895,1841.7,1841.6,5.42999]
[1743265646504,3.0633895,1841.7,1841.4,11.51943]
[1743265646689,0.8061,1841.8,1841.5,5.43031]
[1743265646886,3.0633895,1841.6,1841.3,5.43079]
[1743265647093,3.0633895,1841.6,1841.5,5.43025]
[1743265647293,3.0633895,1841.6,1841.5,10.86039]
[1743265647494,9.1833895,1841.7,1841.6,5.43006]
[1743265648606,9.1833895,1841.7,1841.5,5.43014]
[1743265648813,3.0633895,1841.6,1841.5,5.43014]
[1743265651993,3.0633895,1841.6,1841.5,6.516216]
[1743265652189,3.0,1841.7,1841.6,5.43006]
[1743265652596,6.0633895,1841.7,1841.6,5.43006]
[1743265652994,3.0,1841.7,1841.6,6.23386]
[1743265654332,6.0633895,1841.7,1841.6,6.23386]
[1743265654501,6.0633895,1841.7,1841.6,5.43006]
[1743265655005,6.0633895,1841.7,1841.5,5.43014]
[1743265655407,6.0633895,1841.7,1841.6,5.43006]
[1743265657226,6.0633895,1841.7,1841.6,6.51608]
[1743265657598,3.0,1841.7,1841.6,6.51608]
[1743265659137,3.0633895,1841.8,1841.7,5.42976]
[1743265662433,3.0633895,1841.8,1841.7,6.20176]
[1743265663728,3.0633895,1841.8,1841.7,5.42976]
[1743265663929,3.0633895,1841.8,1841.6,10.85999]
[1743265664133,3.0633895,1841.7,1841.6,5.42993]
[1743265665831,3.0,1842.0,1841.9,5.42917]
[1743265666031,6.8892,1842.1,1842.0,5.42888]
[1743265666032,6.12,1842.1,1842.0,5.42888]
[1743265666231,3.0633895,1842.3,1842.2,5.42829]
[1743265666641,6.0633895,1842.3,1842.2,5.42829]
[1743265666839,3.0633895,1842.3,1842.2,5.42829]
[1743265667611,3.0633895,1842.3,1842.1,5.42845]
[1743265667810,6.0633895,1842.2,1842.1,5.42845]
[1743265669053,3.0,1842.2,1842.1,5.42845]
[1743265669211,6.0633895,1842.2,1842.1,5.42845]
[1743265669406,3.0,1842.2,1842.1,5.42845]
[1743265670807,3.0,1842.2,1842.1,6.21455]
[1743265671237,3.0,1842.2,1842.1,5.42845]
[1743265673312,3.0,1842.2,1842.1,6.514182]
[1743265674235,3.0,1842.4,1842.3,5.42799]
[1743265676920,6.0633895,1842.4,1842.2,5.42818]
[1743265677844,6.0633895,1842.4,1842.2,10.85628]
[1743265678217,6.0633895,1842.4,1842.2,5.4281]
[1743265678549,6.0633895,1842.4,1842.2,10.85624]
[1743265680051,6.0633895,1842.4,1842.2,5.4281]
[1743265680640,6.0633895,1842.3,1842.2,5.4281]
[1743265681442,6.0633895,1842.3,1842.0,5.42884]
[1743265681615,3.0633895,1842.1,1841.8,10.67717]
[1743265681820,3.0633895,1842.0,1841.9,5.42911]
[1743265682719,3.0633895,1842.0,1841.8,10.67717]
[1743265682929,3.0633895,1842.0,1841.8,16.10646]
[1743265683139,3.0633895,1841.9,1841.8,5.42917]
[1743265683963,3.0633895,1841.9,1841.7,5.42969]
[1743265684125,3.0633895,1841.8,1841.6,5.42993]
[1743265684322,3.0633895,1841.7,1841.6,5.42993]
[1743265684854,3.8221895,1841.8,1841.6,5.42993]
[1743265685023,3.8221895,1841.8,1841.6,10.85978]
[1743265685225,3.0633895,1841.7,1841.5,5.43017]
[1743265685428,6.0633895,1841.6,1841.5,5.43017]
[1743265686950,3.0,1841.6,1841.5,5.43017]
[1743265689444,6.0633895,1841.6,1841.5,5.43017]
[1743265689643,6.0633895,1841.6,1841.4,5.43057]
[1743265690166,3.0633895,1841.5,1841.2,0.7911]
[1743265690324,3.0633895,1841.5,1841.2,5.43113]
[1743265690325,3.0633895,1841.3,1841.2,5.43113]
[1743265690656,3.0633895,1841.4,1841.2,10.86226]
[1743265691035,3.0633895,1841.4,1841.2,5.43113]
[1743265691352,3.0633895,1841.3,1841.1,10.86286]
[1743265691957,3.0633895,1841.3,1841.2,5.43124]
[1743265692124,3.0633895,1841.4,1841.2,10.86229]
[1743265692324,3.0633895,1841.4,1841.2,5.43105]
[1743265692532,3.0633895,1841.4,1841.0,0.7911]
[1743265692533,4.23303488,1841.5,1841.3,5.43094]
[1743265692947,3.0633895,1841.4,1841.3,5.43094]
[1743265693157,4.23303488,1841.5,1841.3,10.86175]
[1743265693357,3.8221895,1841.5,1841.3,10.86175]
[1743265693526,3.8221895,1841.5,1841.3,5.43081]
[1743265693727,3.0,1841.6,1841.5,5.43035]
[1743265693944,9.12,1841.7,1841.6,5.43006]
[1743265694144,3.0,1841.7,1841.6,5.43006]
[1743265694348,3.0,1841.7,1841.6,6.22116]
[1743265694659,6.0633895,1841.7,1841.6,5.43006]
[1743265696055,3.0,1841.7,1841.6,5.43006]
[1743265696237,6.8788,1842.1,1841.9,5.42902]
[1743265696238,3.0633895,1842.0,1841.9,5.42902]
[1743265696434,3.0633895,1842.0,1841.8,10.85886]
[1743265696633,3.0633895,1841.9,1841.8,5.42943]
[1743265697245,6.0633895,1842.0,1841.9,5.42905]
[1743265697554,3.0633895,1842.1,1842.0,5.42888]
[1743265697859,3.0633895,1842.1,1841.9,5.42905]
[1743265698159,3.0633895,1842.0,1841.9,5.42905]
[1743265700456,3.0633895,1842.0,1841.7,6.22084]
[1743265700666,3.0633895,1841.8,1841.7,5.42974]
[1743265704266,6.0633895,1842.0,1841.9,5.42917]
[1743265705165,3.0,1842.0,1841.9,5.42917]
[1743265705346,3.0,1842.1,1842.0,5.42888]
[1743265705548,6.0633895,1842.1,1841.9,5.42917]
[1743265705866,3.0633895,1842.0,1841.9,5.42917]
[1743265706665,3.0633895,1842.0,1841.8,5.4294]
[1743265706871,3.0633895,1841.9,1841.8,5.4294]
[1743265707544,3.0633895,1841.9,1841.7,10.65347]
[1743265707765,3.0633895,1841.8,1841.7,10.65347]
[1743265710074,3.0633895,1841.9,1841.7,10.65347]
[1743265710274,3.0633895,1841.8,1841.7,10.65347]
[1743265710444,3.0633895,1841.8,1841.6,5.42992]
[1743265711443,3.0,1841.9,1841.5,11.46463]
[1743265711444,3.0,1841.6,1841.5,5.43033]
[1743265712745,3.0633895,1841.6,1841.5,5.43033]
[1743265714582,3.0,1841.6,1841.5,5.43033]
[1743265715472,3.0633895,1841.6,1841.4,5.43062]
[1743265715977,3.0633895,1841.6,1841.4,10.8611]
[1743265716280,3.0633895,1841.6,1841.5,5.43035]
[1743265716480,3.0,1841.6,1841.5,5.43035]
[1743265717676,3.0633895,1841.6,1841.4,5.43054]
[1743265717881,3.0633895,1841.6,1841.4,10.86105]
[1743265719343,3.0633895,1841.6,1841.5,5.43035]
[1743265719675,3.0,1841.6,1841.5,5.43007]
[1743265724284,3.0,1841.6,1841.3,6.0323]
[1743265724452,3.0633895,1841.5,1841.4,5.43051]
[1743265724653,3.0633895,1841.6,1841.4,5.43051]
[1743265724853,3.0633895,1841.6,1841.4,10.86097]
[1743265725280,3.0633895,1841.5,1841.4,10.86097]
[1743265725547,3.0633895,1841.5,1841.4,5.43046]
[1743265727681,3.0633895,1841.6,1841.5,5.4302]
[1743265730497,6.0633895,1841.6,1841.5,5.4302]
[1743265731096,3.0,1841.6,1841.5,5.4302]
[1743265731395,3.0,1841.6,1841.5,6.1849]
[1743265732200,6.0633895,1841.6,1841.5,5.4302]
[1743265733976,3.0,1841.6,1841.5,5.4302]
[1743265740808,6.12,1842.0,1841.6,5.43006]
[1743265740968,6.12,1842.0,1841.5,1.873366]
[1743265740969,6.12,1842.0,1841.9,6.21647]
[1743265741698,6.12,1842.0,1841.9,6.27075649]
[1743265742082,6.12,1842.0,1841.9,6.21647]
[1743265744630,6.0633895,1842.1,1842.0,5.42888]
[1743265745576,6.0633895,1842.1,1841.9,6.21647]
[1743265745777,3.0633895,1842.0,1841.8,5.42945]
[1743265746092,3.0633895,1841.9,1841.7,10.61275]
[1743265746296,3.0633895,1841.8,1841.7,10.61255]
[1743265747588,3.0633895,1841.9,1841.7,16.04204]
[1743265747985,6.0633895,1842.1,1841.9,5.42908]
[1743265748497,6.0633895,1842.1,1842.0,5.42888]
[1743265752016,6.0633895,1842.1,1841.9,5.42908]
[1743265752184,3.0,1841.9,1841.7,5.42947]
[1743265752390,3.0,1841.7,1841.5,5.4303]
[1743265752618,3.0633895,1841.6,1841.4,10.61351]
[1743265752793,3.0633895,1841.5,1841.4,10.61351]
[1743265753713,0.7608,1841.9,1841.5,5.43035]
[1743265753714,3.0633895,1841.6,1841.5,5.43035]
[1743265754221,3.0633895,1841.7,1841.6,5.42997]
[1743265754422,3.0,1841.7,1841.6,5.42997]
[1743265754792,6.0633895,1841.7,1841.6,5.42997]
[1743265755322,1.17307726,1841.9,1841.7,5.42976]
[1743265755323,3.0,1841.8,1841.7,5.42976]
[1743265756227,6.0633895,1841.8,1841.7,5.42976]
[1743265758334,9.1833895,1842.0,1841.9,5.42917]
[1743265758501,3.0633895,1842.1,1841.9,5.42917]
[1743265758698,3.0,1842.0,1841.9,5.42917]
[1743265761632,3.0,1842.0,1841.9,6.515034]
[1743265762432,3.0633895,1842.0,1841.9,6.515034]
[1743265762638,3.0633895,1842.0,1841.9,5.42917]
[1743265767113,3.0633895,1842.1,1841.9,5.4289]
[1743265767313,3.0633895,1842.1,1842.0,5.42888]
[1743265767538,3.0633895,1842.2,1842.0,5.42862]
[1743265767740,9.1833895,1842.3,1842.1,5.42838]
[1743265767943,3.0633895,1842.2,1842.1,5.42838]
[1743265768441,9.51981054,1842.4,1842.1,5.42838]
[1743265768646,3.0633895,1842.2,1842.1,5.42838]
[1743265770649,3.0633895,1842.3,1842.1,5.42838]
[1743265770859,3.8238895,1842.2,1841.8,0.829]
[1743265771026,3.0633895,1841.9,1841.7,10.85926]
[1743265771224,3.0633895,1841.8,1841.7,5.4296]
[1743265771426,3.0633895,1841.9,1841.7,5.4296]
[1743265771625,3.0633895,1841.9,1841.7,10.85917]
[1743265771954,6.0633895,1841.9,1841.8,5.42947]
[1743265774660,3.0633895,1841.9,1841.7,10.85913]
[1743265774823,3.0633895,1841.9,1841.7,5.42956]
[1743265775023,3.0633895,1841.9,1841.8,5.42947]
[1743265775323,3.0633895,1842.0,1841.8,5.42931]
[1743265775637,3.0633895,1841.9,1841.6,5.43002]
[1743265775842,3.0633895,1841.8,1841.6,5.43002]
[1743265776432,3.0633895,1841.8,1841.6,10.85988]
[1743265776834,3.0633895,1841.9,1841.7,10.85932]
[1743265777030,3.0633895,1841.9,1841.6,5.43005]
[1743265777235,3.0633895,1841.9,1841.6,5.48421494]
[1743265777655,3.0633895,1841.9,1841.7,5.42966]
[1743265778231,3.8717895,1841.8,1841.3,0.7971]
[1743265778432,3.0633895,1841.6,1841.4,5.43039]
[1743265778635,3.0633895,1841.6,1841.4,10.86091]
[1743265779257,3.0633895,1841.6,1841.5,5.43035]
[1743265780462,3.0633895,1841.6,1841.4,5.43039]
[1743265780665,3.0633895,1841.5,1841.4,5.43039]
[1743265782259,3.0633895,1841.5,1841.3,5.43092]
[1743265782557,3.0633895,1841.4,1841.3,5.43092]
[1743265782763,6.12,1841.7,1841.6,5.43006]
[1743265783058,3.0,1841.6,1841.5,10.86031]
[1743265783259,3.0,1841.6,1841.5,5.43012]
[1743265784562,6.0633895,1841.6,1841.5,5.43012]
[1743265785550,6.0633895,1841.6,1841.4,5.43062]
[1743265785755,3.0633895,1841.5,1841.4,5.43062]
[1743265791285,3.0633895,1841.5,1841.3,5.43092]
[1743265791463,3.0633895,1841.4,1841.3,5.43092]
[1743265792254,3.0633895,1841.5,1841.4,5.43042]
[1743265792569,6.8717895,1841.6,1841.5,5.43035]
[1743265792873,6.0633895,1841.6,1841.5,5.43035]
[1743265793261,6.0633895,1841.6,1841.4,5.43042]
[1743265793663,6.0633895,1841.6,1841.4,10.86087]
[1743265796567,3.0633895,1841.5,1841.3,5.43071]
[1743265796769,3.0633895,1841.5,1841.4,5.43065]
[1743265798646,3.7519,1841.4,1841.1,5.43152]
[1743265798986,3.7519,1841.1,1840.8,6.23366]
[1743265799191,3.0633895,1840.9,1840.8,6.23366]
[1743265799346,3.0633895,1841.0,1840.8,6.23366]
[1743265799551,3.0633895,1841.0,1840.8,11.66595]
[1743265799780,3.0633895,1841.0,1840.9,5.43212]
[1743265800163,3.0633895,1841.0,1840.8,6.23361]
[1743265800378,3.0633895,1840.9,1840.8,6.23361]
[1743265801084,3.0633895,1840.9,1840.7,5.43269]
[1743265801256,3.0633895,1840.8,1840.7,5.43269]
[1743265801447,3.0633895,1840.8,1840.6,5.43299]
[1743265801651,3.0633895,1840.7,1840.6,5.43299]
[1743265802392,3.0633895,1840.7,1840.5,5.43309]
[1743265802563,3.0633895,1840.7,1840.5,10.86617]
[1743265802887,3.0633895,1840.7,1840.5,10.86627]
[1743265803075,3.0633895,1840.7,1840.6,5.43301]
[1743265803677,3.0633895,1840.9,1840.7,5.43249]
[1743265803886,6.0633895,1840.9,1840.8,5.43242]
[1743265804576,6.0633895,1840.9,1840.7,5.43249]
[1743265806272,6.0633895,1840.9,1840.8,5.43242]
[1743265807076,6.0633895,1840.9,1840.7,5.43249]
[1743265807746,3.0633895,1840.8,1840.7,5.43249]
[1743265811585,0.8073,1841.3,1841.1,5.43124]
[1743265811779,6.0633895,1841.2,1841.1,5.43124]
[1743265811952,3.0633895,1841.2,1841.0,6.25532]
[1743265812151,3.0633895,1841.2,1841.1,5.43153]
[1743265812590,3.0633895,1841.2,1841.0,5.43176]
[1743265812792,6.0633895,1841.1,1840.8,5.184]
[1743265813095,3.0633895,1840.9,1840.8,10.61642]
[1743265813254,3.0633895,1840.9,1840.8,5.43242]
[1743265814465,3.0633895,1841.0,1840.9,5.43208]
[1743265815073,3.0633895,1841.0,1840.7,5.43268]
[1743265815274,3.0633895,1840.9,1840.7,5.43268]
[1743265815671,3.0633895,1840.9,1840.7,10.86519]
[1743265815992,3.0633895,1840.9,1840.8,5.43242]
[1743265817289,3.0633895,1840.9,1840.7,10.86506]
[1743265817684,3.0633895,1840.9,1840.8,5.43242]
[1743265819287,3.8706895,1840.9,1840.7,5.43251]
[1743265819597,3.8706895,1840.9,1840.5,10.6171]
[1743265819598,3.0633895,1840.8,1840.5,10.86628]
[1743265819907,3.0633895,1840.6,1840.5,5.43309]
[1743265821590,3.0633895,1840.7,1840.6,5.43291]
[1743265822587,6.0633895,1840.9,1840.8,5.43242]
[1743265822789,12.1833895,1841.0,1840.9,5.43212]
[1743265823673,6.0633895,1841.0,1840.9,5.43212]
[1743265825007,3.0633895,1841.0,1840.9,6.26332]
[1743265825810,6.0633895,1841.1,1841.0,5.43156]
[1743265826418,9.1833895,1841.3,1841.1,5.43125]
[1743265826621,3.0633895,1841.3,1841.1,5.43125]
[1743265827113,3.8750895,1841.2,1840.9,5.4321]
[1743265827282,3.0633895,1841.0,1840.8,5.43241]
[1743265827624,3.0633895,1840.9,1840.7,10.61659]
[1743265827802,3.0633895,1840.8,1840.6,6.26407]
[1743265828119,3.0633895,1840.7,1840.5,16.05039]
[1743265828280,0.8117,1840.9,1840.6,5.43301]
[1743265828480,3.0633895,1840.7,1840.5,10.6171]
[1743265828789,3.0633895,1840.6,1840.5,10.6171]
[1743265830423,3.0633895,1840.6,1840.4,1.09224609]
[1743265830724,3.0633895,1840.6,1840.3,0.1097111]
[1743265830725,3.0633895,1840.5,1840.3,0.1097111]
[1743265830878,3.0633895,1840.4,1840.3,0.1097111]
[1743265832480,3.0633895,1840.4,1840.3,5.5436011]
[1743265832685,3.0633895,1840.4,1840.3,0.1097111]
[1743265832891,6.12,1840.6,1840.4,5.43356]
[1743265833184,6.12,1840.6,1840.5,5.4333]
[1743265833778,6.12,1840.6,1840.5,6.2645]
[1743265835087,9.1833895,1840.6,1840.5,6.2645]
[1743265835290,3.0633895,1840.6,1840.5,5.4333]
[1743265836611,3.0633895,1840.6,1840.3,5.5435811]
[1743265836913,3.0633895,1840.4,1840.3,5.5435811]
[1743265837506,6.0633895,1840.5,1840.4,5.43334]
[1743265839382,6.0633895,1840.5,1840.3,5.5435811]
[1743265839585,3.0633895,1840.4,1840.3,5.5435811]
[1743265841821,3.8439895,1840.4,1840.3,0.1097111]
[1743265842021,6.8439895,1840.4,1840.3,0.1097111]
[1743265842330,6.0633895,1840.4,1840.3,5.5436011]
[1743265842529,6.0633895,1840.4,1840.3,6.3590011]
[1743265843940,2.00218092,1841.1,1841.0,5.43183]
[1743265844140,2.30749322,1841.3,1841.2,5.43124]
[1743265844425,4.59028272,1841.3,1841.2,5.43124]
[1743265844606,4.59028272,1841.3,1841.0,5.43181]
[1743265844805,6.0633895,1841.1,1841.0,5.43181]
[1743265845013,3.0633895,1841.2,1841.1,5.4315]
[1743265845393,6.0633895,1841.2,1841.1,5.4315]
[1743265847331,3.0,1841.2,1841.1,5.4315]
[1743265848124,6.0633895,1841.2,1841.1,5.4315]
[1743265849796,3.0,1841.1,1841.0,5.43181]
[1743265850034,3.0633895,1841.1,1841.0,5.43181]
[1743265850602,3.0633895,1841.1,1840.9,10.86401]
[1743265850799,3.0633895,1841.0,1840.9,10.86401]
[1743265851100,3.0633895,1841.1,1841.0,5.43178]
[1743265853235,3.0633895,1841.1,1840.9,10.86395]
[1743265853431,3.0633895,1841.0,1840.9,5.43193]
[1743265853636,3.0633895,1841.1,1841.0,5.4318]
[1743265854932,3.0,1841.3,1841.2,5.43124]
[1743265855131,0.7594,1841.7,1841.6,5.43006]
[1743265855331,3.0,1841.6,1841.5,5.43035]
[1743265855532,3.7594,1841.7,1841.5,5.43035]
[1743265855736,3.0633895,1841.7,1841.6,5.43006]
[1743265857252,3.0633895,1841.7,1841.6,6.591275]
[1743265857817,3.33616299,1841.9,1841.6,1.161215]
[1743265858014,3.0633895,1841.8,1841.7,5.42956]
[1743265858418,6.0633895,1841.8,1841.7,5.42956]
[1743265858612,6.0633895,1841.8,1841.7,6.6316415]
[1743265859427,3.0,1841.8,1841.7,6.6316415]
[1743265861810,6.8227895,1841.8,1841.6,5.43004]
[1743265862007,3.0633895,1841.7,1841.6,5.43004]
[1743265862209,3.0633895,1841.7,1841.5,5.43033]
[1743265863947,3.0633895,1841.7,1841.5,10.86051]
[1743265865047,3.0633895,1841.7,1841.6,5.43006]
[1743265865234,6.0633895,1841.8,1841.7,5.42976]
[1743265865418,3.0,1841.8,1841.7,5.42976]
[1743265866228,9.1833895,1842.1,1842.0,5.42888]
[1743265866550,3.0633895,1842.4,1842.2,5.42809]
[1743265866725,3.0,1842.3,1842.2,10.85624]
[1743265867654,3.0633895,1842.4,1842.2,10.85624]
[1743265868055,3.0633895,1842.5,1842.3,5.42799]
[1743265868249,3.0,1842.4,1842.3,5.42799]
[1743265868826,3.0633895,1842.5,1842.3,5.42778]
[1743265869247,3.0,1842.4,1842.3,5.42778]
[1743265869645,6.0633895,1842.5,1842.4,5.42766]
[1743265870254,6.0633895,1842.5,1842.3,5.42778]
[1743265871856,6.0633895,1842.5,1842.3,10.85566]
[1743265872157,6.0633895,1842.5,1842.3,5.42778]
[1743265873267,3.0633895,1842.4,1842.2,5.182]
[1743265873450,3.0633895,1842.3,1842.1,5.42858]
[1743265873945,8.42747,1842.5,1842.4,5.4277]
[1743265873946,3.0,1842.5,1842.4,5.4277]
[1743265877534,3.0,1842.5,1842.4,6.2517]
[1743265877737,3.0633895,1843.1,1842.9,5.42618]
[1743265877931,3.0633895,1843.1,1842.8,6.25052]
[1743265878138,3.0,1843.0,1842.8,6.25052]
[1743265878336,3.0633895,1843.0,1842.8,5.42652]
[1743265878564,3.0633895,1843.1,1842.9,5.42602]
[1743265878771,3.0633895,1843.1,1842.9,10.85211]
[1743265878940,3.0633895,1843.1,1843.0,5.42593]
[1743265879143,6.0633895,1843.2,1843.0,5.42593]
[1743265880769,3.0633895,1843.1,1842.9,6.21114]
[1743265880955,3.0633895,1843.1,1843.0,5.42593]
[1743265881361,6.0633895,1843.2,1843.0,5.42593]
[1743265881738,3.0,1843.2,1843.0,10.85163]
[1743265882066,6.12,1843.3,1843.2,5.42534]
[1743265882294,3.0,1843.4,1843.2,6.21034]
[1743265882568,3.0,1843.4,1843.2,7.373938]
[1743265882771,3.0,1843.4,1843.3,5.42505]
[1743265883372,3.0633895,1843.6,1843.4,5.42471]
[1743265884471,3.0633895,1843.6,1843.4,5.4247]
[1743265884776,3.0633895,1843.6,1843.3,5.42505]
[1743265884971,3.0,1843.4,1843.3,6.7049468]
[1743265887364,3.0633895,1843.6,1843.4,5.42455]
[1743265887763,3.0633895,1843.7,1843.5,5.42446]
[1743265887964,6.12,1843.8,1843.6,5.42409]
[1743265888143,3.0,1843.8,1843.6,5.42409]
[1743265888347,3.0633895,1843.8,1843.5,0.785]
[1743265888543,3.0633895,1843.7,1843.4,10.60273]
[1743265888746,3.0633895,1843.6,1843.4,5.178]
[1743265888946,3.0,1843.5,1843.4,5.178]
[1743265892365,6.8553895,1843.5,1843.4,5.178]
[1743265892682,6.8553895,1843.5,1843.2,6.21029]
[1743265892866,3.0633895,1843.4,1843.2,6.21029]
[1743265893680,3.0633895,1843.3,1842.9,7.5177171]
[1743265893976,3.0633895,1843.1,1842.8,5.42646]
[1743265894179,3.0633895,1843.0,1842.7,11.4229]
[1743265894378,3.0633895,1843.0,1842.7,6.24589]
[1743265894683,3.0633895,1842.9,1842.7,0.8192]
[1743265894852,3.0633895,1842.8,1842.5,11.42359]
[1743265895182,3.0,1842.9,1842.6,1.142359]
[1743265895481,6.0633895,1842.9,1842.6,1.142359]
[1743265896877,6.0633895,1842.9,1842.6,6.569409]
[1743265897082,5.42571,1843.1,1842.6,6.569409]
[1743265897083,8.4884595,1843.3,1842.9,5.42623]
[1743265897267,3.8741895,1843.6,1843.2,5.42515]
[1743265897473,9.2984895,1843.6,1843.2,5.42515]
[1743265897791,3.0,1843.5,1843.2,5.42515]
[1743265898284,3.0633895,1843.5,1843.2,0.624435]
[1743265898484,3.0633895,1843.4,1843.2,0.624435]
[1743265898649,3.0,1843.3,1843.2,0.624435]
[1743265898849,8.4881695,1843.4,1843.1,0.8192]
[1743265899065,3.0,1843.3,1843.1,0.8192]
[1743265899555,5.42461,1843.5,1843.1,0.8192]
[1743265899556,11.4879995,1843.5,1843.1,0.8192]
[1743265899785,5.42477,1843.4,1843.1,0.8192]
[1743265900184,11.4879995,1843.5,1843.1,0.8192]
[1743265900382,11.4879995,1843.5,1843.1,1.443692]
[1743265900584,11.4879995,1843.5,1843.1,6.869272]
[1743265900880,3.0,1843.5,1843.1,12.294632]
[1743265901086,3.0,1843.5,1843.1,6.869132]
[1743265901864,3.0,1843.5,1843.2,5.47958418]
[1743265902061,3.0,1843.5,1843.3,0.54795842]
[1743265902473,3.0,1843.5,1843.2,0.05424418]
[1743265902674,8.42449,1843.5,1843.2,0.05424418]
[1743265902887,3.0,1843.5,1843.2,0.05424418]
[1743265903089,3.0,1843.5,1843.2,5.47952418]
[1743265903263,3.0,1843.5,1843.2,0.05424418]
[1743265903264,8.42464,1843.5,1843.2,0.05424418]
[1743265903591,8.42464,1843.5,1843.2,0.7465778]
[1743265903792,8.42464,1843.5,1843.2,0.69233362]
[1743265904396,3.0633895,1843.4,1843.1,1.443692]
[1743265907317,11.4880295,1843.5,1843.1,1.443692]
[1743265907799,16.9127295,1843.5,1843.1,1.443692]
[1743265908101,3.0,1843.3,1843.1,1.443692]
[1743265910323,3.0,1843.4,1843.2,0.05424737]
[1743265910524,11.54336,1843.9,1843.4,6.24925]
[1743265910691,5.42369,1843.8,1843.4,0.8247]
[1743265910893,3.0,1843.7,1843.4,0.8247]
[1743265911098,3.0633895,1843.6,1843.4,0.8247]
[1743265911321,3.0633895,1843.6,1843.4,1.42487]
[1743265911525,11.4873695,1843.7,1843.4,1.42487]
[1743265913826,3.0,1843.7,1843.4,6.84953]
[1743265914029,3.0,1843.8,1843.4,6.84953]
[1743265914525,11.4870095,1843.8,1843.4,1.42487]
[1743265914711,3.0,1843.8,1843.4,6.8496]
[1743265914922,3.0633895,1843.9,1843.5,0.68496]
[1743265915105,3.0,1843.8,1843.5,0.68496]
[1743265915306,6.0633895,1843.8,1843.5,0.68496]
[1743265916411,6.0633895,1843.8,1843.5,6.10941]
[1743265916727,6.0633895,1843.8,1843.5,0.68496]
[1743265917227,6.0633895,1843.8,1843.5,6.10942]
[1743265917532,6.0633895,1843.8,1843.6,0.610942]
[1743265917925,6.0633895,1843.8,1843.5,0.68496]
[1743265918104,3.0633895,1843.7,1843.5,0.68496]
[1743265918309,3.0633895,1843.7,1843.4,6.8496]
[1743265918833,3.0,1843.6,1843.4,1.42487]
[1743265919423,6.0633895,1843.6,1843.4,1.42487]
[1743265919626,6.0633895,1843.6,1843.4,6.60087]
[1743265920229,3.0,1843.6,1843.4,12.02558]
[1743265920428,3.0633895,1843.9,1843.6,5.42417]
[1743265920725,3.0633895,1843.9,1843.7,0.8247]
[1743265920906,6.0633895,1843.8,1843.7,0.8247]
[1743265923140,6.0633895,1843.8,1843.5,12.051238]
[1743265923317,6.0633895,1843.8,1843.5,12.875938]
[1743265923508,6.0633895,1843.8,1843.6,1.2875938]
[1743265923706,6.0633895,1843.8,1843.6,6.7117538]
[1743265924136,6.0633895,1843.8,1843.6,6.7115538]
[1743265924442,3.0633895,1844.2,1843.9,5.42316]
[1743265924733,3.0,1844.1,1843.9,6.5620599]
[1743265924900,3.0633895,1844.1,1843.9,6.5620599]
[1743265925105,3.0633895,1844.0,1843.9,1.084674]
[1743265926435,3.0633895,1844.0,1843.9,6.507954]
[1743265926614,3.0,1844.3,1844.1,5.42249]
[1743265926810,5.96624,1844.5,1844.1,0.542249]
[1743265926811,0.5447,1844.5,1844.1,0.542249]
[1743265927015,9.1833895,1844.6,1844.4,5.42173]
[1743265927212,3.0633895,1844.5,1844.4,5.42173]
[1743265928923,3.0,1844.6,1844.5,6.1831]
[1743265932237,6.47062765,1844.9,1844.8,5.42064]
[1743265932439,3.47062765,1844.9,1844.7,5.42093]
[1743265932820,3.0633895,1844.8,1844.7,5.42093]
[1743265933024,6.0633895,1844.8,1844.6,5.42121]
[1743265933225,6.0633895,1844.8,1844.6,12.002761]
[1743265933541,6.0633895,1844.8,1844.7,5.42093]
[1743265934042,3.0,1844.8,1844.7,5.42093]
[1743265934806,3.46112665,1845.1,1844.9,5.42034]
[1743265935013,0.8221,1845.2,1845.0,5.41989]
[1743265935247,3.0633895,1845.1,1845.0,5.41989]
[1743265935822,3.0633895,1845.2,1845.1,5.41976]
[1743265936342,6.0633895,1845.3,1845.2,5.41925]
[1743265938915,6.0633895,1845.3,1845.1,5.41976]
[1743265939118,3.0633895,1845.2,1845.1,5.41976]
[1743265941520,3.0,1845.3,1845.2,5.41946]
[1743265941721,6.0633895,1845.3,1845.2,5.41946]
[1743265942463,6.0633895,1845.3,1845.0,5.41996]
[1743265942633,3.0633895,1845.1,1845.0,5.41984]
[1743265944247,3.0633895,1845.2,1845.1,5.41947]
[1743265944453,6.0633895,1845.3,1845.2,5.41946]
[1743265947920,6.12,1845.6,1845.4,10.83759]
[1743265948121,6.0633895,1845.5,1845.4,10.83759]
[1743265948325,6.0633895,1845.5,1845.4,11.51286032]
[1743265948925,3.0,1845.5,1845.4,11.51286032]
[1743265949262,3.0,1845.5,1845.4,12.32626032]
[1743265949449,6.0633895,1845.5,1845.4,6.09399032]
[1743265950059,6.0633895,1845.5,1845.4,0.67527032]
[1743265950259,6.0633895,1845.5,1845.3,10.59116]
[1743265950450,3.0633895,1845.4,1845.3,10.59116]
[1743265950829,3.0633895,1845.4,1845.3,5.41916]
[1743265952636,6.0633895,1845.5,1845.4,5.41887]
[1743265953237,6.0633895,1845.5,1845.3,5.41916]
[1743265953442,3.0633895,1845.4,1845.3,6.50302]
[1743265954364,6.0633895,1845.5,1845.4,5.41887]
[1743265955360,6.0633895,1845.5,1845.3,6.50292]
[1743265955553,3.0633895,1845.4,1845.3,6.50292]
[1743265956466,3.0633895,1845.4,1845.3,5.41906]
[1743265957641,3.0,1845.2,1844.7,5.9411]
[1743265957840,3.0633895,1844.9,1844.8,5.42042]
[1743265958231,3.0633895,1844.9,1844.8,7.098663]
[1743265959767,3.0633895,1844.9,1844.7,10.59091]
[1743265960068,3.0633895,1844.8,1844.7,10.59091]
[1743265960236,3.8521895,1844.8,1844.6,5.4212]
[1743265960435,3.0633895,1844.7,1844.6,5.4212]
[1743265960843,3.0633895,1844.8,1844.6,5.4212]
[1743265961048,3.0633895,1844.8,1844.7,5.4208]